fUST/lending_fUST_20250717
["ID","MTS","AMOUNT","RATE_DAILY","PERIOD"]
[372624199,1752714652091,-460.0,0.00019044,2]
[372624200,1752714652101,-151.0,0.00019044,2]
[372624201,1752714652111,-608.753778,0.00019044,2]
[372624202,1752714652120,-608.753778,0.00019044,2]
[372624203,1752714652130,-472.463895,0.00019044,2]
[372624204,1752714652140,-472.463895,0.00019044,2]
[372624205,1752714652149,-151.0,0.00019044,2]
[372624206,1752714652159,-1113.458894,0.00019044,2]
[372624207,1752714652169,-1113.458894,0.00019044,2]
[372624208,1752714652179,-151.0,0.00019044,2]
[372624209,1752714652189,-197.855575,0.00019044,2]
[372624210,1752714652199,-197.855575,0.00019044,2]
[372624211,1752714652208,-460.0,0.00019044,2]
[372624212,1752714652218,-151.0,0.00019044,2]
[372624213,1752714652227,-151.0,0.00019044,2]
[372624214,1752714652238,-151.0,0.00019044,2]
[372624215,1752714652248,-460.0,0.00019044,2]
[372624216,1752714652257,-460.0,0.00019044,2]
[372624217,1752714652267,-460.0,0.00019044,2]
[372624218,1752714652277,-151.0,0.00019044,2]
[372624219,1752714652287,-1078.16,0.00019044,2]
[372624220,1752714652296,-483.170774,0.00019044,2]
[372624221,1752714652306,-460.0,0.00019044,2]
[372624222,1752714652315,-483.170774,0.00019044,2]
[372624223,1752714652325,-3815.419975,0.00019044,2]
[372624224,1752714652335,-460.0,0.00019044,2]
[372624225,1752714652344,-3815.419975,0.00019044,2]
[372624226,1752714652355,-460.0,0.00019044,2]
[372624227,1752714652364,-151.0,0.00019044,2]
[372624228,1752714652373,-460.0,0.00019044,2]
[372624229,1752714652382,-180.750028,0.00019044,2]
[372624230,1752714652391,-180.750028,0.00019044,2]
[372624231,1752714652400,-460.0,0.00019044,2]
[372624232,1752714652410,-164.670756,0.00019044,2]
[372624233,1752714652419,-544.425801,0.00019044,2]
[372624234,1752714652429,-164.670756,0.00019044,2]
[372624235,1752714652438,-544.425801,0.00019044,2]
[372624236,1752714652447,-460.0,0.00019044,2]
[372624237,1752714652457,-460.0,0.00019044,2]
[372624238,1752714652467,-460.0,0.00019044,2]
[372624239,1752714652476,-460.0,0.00019044,2]
[372624240,1752714652486,-460.0,0.00019044,2]
[372624241,1752714652495,-460.0,0.00019044,2]
[372624242,1752714652505,-460.0,0.00019044,2]
[372624243,1752714652514,-460.0,0.00019044,2]
[372624244,1752714652524,-786.658585,0.00019044,2]
[372624245,1752714652533,-786.658585,0.00019044,2]
[372624246,1752714652543,-151.0,0.00019045,2]
[372624247,1752714652552,-151.0,0.00019045,2]
[372624248,1752714652561,-251.492781,0.00019045,2]
[372624249,1752714652571,-251.492781,0.00019045,2]
[372624250,1752714652580,-151.0,0.00019045,2]
[372624251,1752714652590,-151.0,0.00019045,2]
[372624252,1752714652600,-151.0,0.00019045,2]
[372624253,1752714652610,-151.0,0.00019045,2]
[372624254,1752714652620,-483.170774,0.00019045,2]
[372624255,1752714652630,-483.170774,0.00019045,2]
[372624256,1752714652640,-151.0,0.00019045,2]
[372624257,1752714652651,-340.169357,0.00019072,2]
[372624258,1752714652666,-500.0,0.00019073,2]
[372624259,1752714652676,-500.0,0.00019073,2]
[372624260,1752714652685,-500.0,0.00019073,2]
[372624261,1752714652695,-500.0,0.00019073,2]
[372624262,1752714652705,-500.0,0.00019073,2]
[372624263,1752714652714,-539.725186,0.00019073,2]
[372624264,1752714652724,-500.0,0.00019073,2]
[372624265,1752714652735,-500.0,0.00019073,2]
[372624266,1752714652744,-424.46146884,0.00019073,2]
[372624267,1752714652754,-500.0,0.00019073,2]
[372624268,1752714652763,-500.0,0.00019073,2]
[372624269,1752714652773,-500.0,0.00019073,2]
[372624270,1752714652783,-500.0,0.00019073,2]
[372624271,1752714652792,-500.0,0.00019073,2]
[372624272,1752714652802,-500.0,0.00019073,2]
[372624273,1752714652811,-500.0,0.00019073,2]
[372624274,1752714652914,-344.66638024,0.00019073,2]
[372624275,1752714652924,-500.0,0.00019073,2]
[372624276,1752714652934,-500.0,0.00019073,2]
[372624277,1752714652944,-33448.38427695,0.00019099,2]
[372624278,1752714652953,-151.0,0.000191,2]
[372624279,1752714652963,-800.0,0.00019109,2]
[372624280,1752714652972,-151.0,0.00019132,2]
[372624281,1752714652983,-151.0,0.00019132,2]
[372624282,1752714652994,-3815.419975,0.00019132,2]
[372624283,1752714653003,-3815.419975,0.00019132,2]
[372624284,1752714653013,-544.425801,0.00019132,2]
[372624285,1752714653023,-544.425801,0.00019132,2]
[372624286,1752714653032,-419.250045,0.00019141,2]
[372624287,1752714653042,-419.250045,0.00019141,2]
[372624288,1752714653051,-1113.458894,0.00019141,2]
[372624289,1752714653061,-1113.458894,0.00019141,2]
[372624290,1752714653070,-151.0,0.00019141,2]
[372624291,1752714653079,-197.855575,0.00019141,2]
[372624292,1752714653089,-197.855575,0.00019141,2]
[372624293,1752714653099,-180.750028,0.00019141,2]
[372624294,1752714653108,-180.750034,0.00019141,2]
[372624295,1752714653118,-164.670756,0.00019141,2]
[372624296,1752714653127,-164.670751,0.00019141,2]
[372624297,1752714653137,-786.658585,0.00019141,2]
[372624298,1752714653146,-786.658584,0.00019141,2]
[372624299,1752714653155,-9931.46099401,0.00019141,2]
[372624300,1752714653165,-3861.86850873,0.00019142,2]
[372624301,1752714653174,-280.195861,0.00019144,2]
[372624302,1752714653184,-280.195861,0.00019144,2]
[372624303,1752714653194,-988.056476,0.00019144,2]
[372624304,1752714653203,-988.056476,0.00019144,2]
[372624305,1752714653213,-151.0,0.00019144,2]
[372624306,1752714653223,-151.0,0.00019144,2]
[372624307,1752714653233,-230.874652,0.00019144,2]
[372624308,1752714653243,-230.874652,0.00019144,2]
[372624309,1752714653252,-184.541676,0.00019144,2]
[372624310,1752714653262,-184.541676,0.00019144,2]
[372624311,1752714653272,-247.706779,0.00019144,2]
[372624312,1752714653281,-247.706779,0.00019144,2]
[372624313,1752714653291,-152.032092,0.00019144,2]
[372624314,1752714653301,-460.0,0.00019144,2]
[372624315,1752714653311,-608.753778,0.00019144,2]
[372624316,1752714653320,-608.753778,0.00019144,2]
[372624317,1752714653330,-472.463895,0.00019144,2]
[372624318,1752714653339,-472.463895,0.00019144,2]
[372624319,1752714653348,-502.524844,0.00019144,2]
[372624320,1752714653357,-1124.421415,0.00019144,2]
[372624321,1752714653367,-502.524844,0.00019144,2]
[372624322,1752714653377,-1124.421415,0.00019144,2]
[372624323,1752714653387,-151.0,0.00019144,2]
[372624324,1752714653396,-1410.796136,0.00019144,2]
[372624325,1752714653406,-460.0,0.00019144,2]
[372624326,1752714653416,-151.0,0.00019146,2]
[372624327,1752714653425,-151.0,0.00019146,2]
[372624328,1752714653434,-151.0,0.00019146,2]
[372624329,1752714653444,-151.0,0.00019146,2]
[372624330,1752714653453,-151.0,0.00019146,2]
[372624331,1752714653464,-306.211481,0.00019146,2]
[372624332,1752714653474,-306.211481,0.00019146,2]
[372624333,1752714653483,-151.0,0.00019146,2]
[372624334,1752714653493,-151.0,0.00019146,2]
[372624335,1752714653503,-243.84888678,0.00019149,2]
[372624336,1752714653512,-474.93119925,0.00019154,2]
[372624337,1752714653523,-800.0,0.0001916,2]
[372624338,1752714653533,-800.0,0.00019162,2]
[372624339,1752714653542,-151.0,0.00019178,2]
[372624340,1752714653552,-151.0,0.00019178,2]
[372624341,1752714653561,-151.0,0.00019178,2]
[372624342,1752714653571,-483.170774,0.00019178,2]
[372624343,1752714653580,-483.170771,0.00019178,2]
[372624344,1752714653590,-3815.419975,0.00019178,2]
[372624345,1752714653600,-3815.41997,0.00019178,2]
[372624346,1752714653609,-151.0,0.00019178,2]
[372624347,1752714653619,-544.425801,0.00019178,2]
[372624348,1752714653628,-544.425807,0.00019178,2]
[372624349,1752714653638,-500.0,0.00019178,2]
[372624350,1752714653647,-590.70605591,0.00019178,2]
[372624351,1752714653661,-5000.0,0.00019178,2]
[372624352,1752714653671,-151.0,0.00019178,2]
[372624353,1752714653681,-151.0,0.00019178,2]
[372624354,1752714653690,-151.0,0.00019178,2]
[372624355,1752714653699,-151.0,0.00019178,2]
[372624356,1752714653709,-151.0,0.00019178,2]
[372624357,1752714653718,-151.0,0.00019178,2]
[372624358,1752714653728,-151.0,0.00019178,2]
[372624359,1752714653743,-151.0,0.00019178,2]
[372624360,1752714653753,-151.0,0.00019178,2]
[372624361,1752714653763,-158.777984,0.00019178,2]
[372624362,1752714653773,-186.917318,0.00019178,2]
[372624363,1752714653783,-800.0,0.00019199,2]
[372624364,1752714653792,-153.0,0.000192,3]
[372624365,1752714653801,-153.0,0.000192,3]
[372624366,1752714653811,-153.0,0.000192,3]
[372624367,1752714653821,-151.0,0.000192,2]
[372624368,1752714653830,-479.54771297,0.00019215,2]
[372624369,1752714653840,-800.0,0.00019232,2]
[372624370,1752714653849,-800.0,0.00019241,2]
[372624371,1752714653858,-151.0,0.00019244,2]
[372624372,1752714653868,-412.31935483,0.00019245,2]
[372624373,1752714653877,-1113.458894,0.00019245,2]
[372624374,1752714653886,-1113.458894,0.00019245,2]
[372624375,1752714653896,-151.0,0.00019245,2]
[372624376,1752714653907,-151.0,0.00019245,2]
[372624377,1752714653916,-151.0,0.00019245,2]
[372624378,1752714653926,-264.92489047,0.00019245,2]
[372624379,1752714653937,-151.0,0.00019245,2]
[372624380,1752714653946,-151.0,0.00019245,2]
[372624381,1752714653956,-151.0,0.00019245,2]
[372624382,1752714653966,-151.0,0.00019245,2]
[372624383,1752714653975,-151.0,0.00019245,2]
[372624384,1752714653985,-151.0,0.00019245,2]
[372624385,1752714653995,-1015.0,0.00019245,2]
[372624386,1752714654004,-198.0,0.00019245,2]
[372624387,1752714654014,-198.0,0.00019245,2]
[372624388,1752714654024,-275.53793141,0.00019245,2]
[372624389,1752714654034,-151.0,0.00019245,2]
[372624390,1752714654044,-151.0,0.00019245,2]
[372624391,1752714654053,-500.0,0.00019245,2]
[372624392,1752714654063,-151.0,0.00019245,2]
[372624393,1752714654073,-691.0,0.00019245,2]
[372624394,1752714654083,-151.0,0.00019245,2]
[372624395,1752714654092,-186.003966,0.00019246,2]
[372624396,1752714654101,-151.0,0.00019246,2]
[372624397,1752714654111,-151.0,0.00019246,2]
[372624398,1752714654121,-340.169357,0.00019246,2]
[372624399,1752714654130,-151.0,0.00019246,2]
[372624400,1752714654139,-151.0,0.00019246,2]
[372624401,1752714654149,-197.855575,0.00019246,2]
[372624402,1752714654158,-197.855582,0.00019246,2]
[372624403,1752714654168,-151.0,0.00019254,2]
[372624404,1752714654177,-151.0,0.00019254,2]
[372624405,1752714654186,-251.492781,0.00019254,2]
[372624406,1752714654196,-251.492781,0.00019254,2]
[372624407,1752714654205,-151.0,0.00019254,2]
[372624408,1752714654214,-151.0,0.00019254,2]
[372624409,1752714654224,-151.0,0.00019254,2]
[372624410,1752714654234,-608.753778,0.00019254,2]
[372624411,1752714654244,-608.753778,0.00019254,2]
[372624412,1752714654253,-472.463895,0.00019254,2]
[372624413,1752714654263,-472.463895,0.00019254,2]
[372624414,1752714654272,-151.0,0.00019254,2]
[372624415,1752714654282,-151.0,0.000193,2]
[372624416,1752714654292,-176.67275978,0.00019305,2]
[372624417,1752714654301,-460.0,0.00019305,2]
[372624418,1752714654311,-460.0,0.00019305,2]
[372624419,1752714654321,-460.0,0.00019305,2]
[372624420,1752714654331,-3312.09,0.00019305,2]
[372624421,1752714654340,-460.0,0.00019305,2]
[372624422,1752714654349,-220.97,0.00019305,2]
[372624423,1752714654359,-516.52,0.00019306,2]
[372624424,1752714654368,-460.0,0.00019306,2]
[372624425,1752714654378,-5208.23,0.00019306,2]
[372624426,1752714654387,-7796.58,0.00019306,2]
[372624427,1752714654397,-972.56,0.00019306,2]
[372624428,1752714654407,-559.81,0.00019306,2]
[372624429,1752714654416,-460.0,0.00019306,2]
[372624430,1752714654425,-3179.26,0.00019306,2]
[372624431,1752714654435,-3543.67,0.00019306,2]
[372624432,1752714654444,-460.0,0.00019306,2]
[372624433,1752714654454,-223.77064107,0.00019306,2]
[372624434,1752714654464,-2949.71,0.00019306,2]
[372624435,1752714654473,-889.29,0.00019306,2]
[372624436,1752714654484,-460.0,0.00019315,2]
[372624437,1752714654493,-460.0,0.00019315,2]
[372624438,1752714654503,-460.0,0.00019315,2]
[372624439,1752714654512,-460.0,0.00019315,2]
[372624440,1752714654522,-460.0,0.00019315,2]
[372624441,1752714654531,-291.03584535,0.00019315,2]
[372624442,1752714654540,-460.0,0.00019315,2]
[372624443,1752714654550,-460.0,0.00019315,2]
[372624444,1752714654559,-2223.16,0.00019315,2]
[372624445,1752714654568,-593.5,0.00019315,2]
[372624446,1752714654577,-460.0,0.00019315,2]
[372624447,1752714654586,-924.34,0.00019315,2]
[372624448,1752714654596,-460.0,0.00019315,2]
[372624449,1752714654606,-460.0,0.00019315,2]
[372624450,1752714654615,-744.57,0.00019315,2]
[372624451,1752714654626,-644.37,0.00019315,2]
[372624452,1752714654635,-460.0,0.00019315,2]
[372624453,1752714654645,-1431.13,0.00019315,2]
[372624454,1752714654659,-460.0,0.00019315,2]
[372624455,1752714654669,-460.0,0.00019315,2]
[372624456,1752714654678,-730.95,0.00019315,2]
[372624457,1752714654687,-460.0,0.00019315,2]
[372624458,1752714654698,-460.0,0.00019315,2]
[372624459,1752714654708,-460.0,0.00019315,2]
[372624460,1752714654717,-460.0,0.00019315,2]
[372624461,1752714654728,-178.021619,0.00019315,2]
[372624462,1752714654738,-178.021619,0.00019315,2]
[372624463,1752714654747,-178.021619,0.00019315,2]
[372624464,1752714654758,-177.0799212,0.00019315,2]
[372624465,1752714654767,-153.0,0.00019315,2]
[372624466,1752714654776,-159.7314836,0.00019315,2]
[372624467,1752714654787,-159.7314836,0.00019315,2]
[372624468,1752714654796,-159.4492564,0.00019315,2]
[372624469,1752714654806,-460.0,0.00019316,2]
[372624470,1752714654816,-383.67589888,0.00019316,2]
[372624471,1752714654826,-460.0,0.00019316,2]
[372624472,1752714654835,-1808.03,0.00019316,2]
[372624473,1752714654845,-662.7,0.00019316,2]
[372624474,1752714654943,-460.0,0.00019316,2]
[372624475,1752714654953,-582.19,0.00019316,2]
[372624476,1752714654964,-460.0,0.00019316,2]
[372624477,1752714654974,-661.96,0.00019316,2]
[372624478,1752714654984,-943.34,0.00019316,2]
[372624479,1752714654994,-516.3,0.00019316,2]
[372624480,1752714655003,-460.0,0.00019316,2]
[372624481,1752714655013,-557.22,0.00019317,2]
[372624482,1752714655023,-460.0,0.00019317,2]
[372624483,1752714655032,-747.63,0.00019317,2]
[372624484,1752714655042,-460.0,0.00019317,2]
[372624485,1752714655052,-842.3,0.00019317,2]
[372624486,1752714655063,-610.92,0.00019317,2]
[372624487,1752714655073,-1135.39,0.00019317,2]
[372624488,1752714655082,-1042.86,0.00019317,2]
[372624489,1752714655092,-460.0,0.00019317,2]
[372624490,1752714655101,-460.0,0.00019317,2]
[372624491,1752714655110,-460.0,0.00019317,2]
[372624492,1752714655120,-879.81,0.00019317,2]
[372624493,1752714655129,-574.69,0.00019317,2]
[372624494,1752714655139,-5185.07,0.00019317,2]
[372624495,1752714655148,-2044.86,0.00019317,2]
[372624496,1752714655158,-460.0,0.00019317,2]
[372624497,1752714655167,-1823.31,0.00019317,2]
[372624498,1752714655177,-460.0,0.00019317,2]
[372624499,1752714655186,-460.0,0.00019317,2]
[372624500,1752714655196,-544.42,0.00019317,2]
[372624501,1752714655205,-5784.77,0.00019317,2]
[372624502,1752714655214,-460.0,0.00019317,2]
[372624503,1752714655224,-2654.16,0.00019317,2]
[372624504,1752714655233,-1986.3,0.00019317,2]
[372624505,1752714655243,-617.29,0.00019317,2]
[372624506,1752714655252,-460.0,0.00019317,2]
[372624507,1752714655262,-1372.96,0.00019317,2]
[372624508,1752714655271,-3138.76,0.00019317,2]
[372624509,1752714655280,-460.0,0.00019317,2]
[372624510,1752714655290,-460.0,0.00019317,2]
[372624511,1752714655299,-589.85,0.00019317,2]
[372624512,1752714655309,-460.0,0.00019318,2]
[372624513,1752714655318,-460.0,0.00019318,2]
[372624514,1752714655327,-239.29823351,0.00019318,2]
[372624515,1752714655337,-460.0,0.00019318,2]
[372624516,1752714655346,-151.0,0.00019318,2]
[372624517,1752714655355,-155.330972,0.00019318,2]
[372624518,1752714655365,-230.874652,0.00019318,2]
[372624519,1752714655375,-230.874652,0.00019318,2]
[372624520,1752714655384,-184.541676,0.00019318,2]
[372624521,1752714655392,-184.541676,0.00019318,2]
[372624522,1752714655402,-247.706779,0.00019318,2]
[372624523,1752714655411,-247.706779,0.00019318,2]
[372624524,1752714655421,-608.753778,0.00019318,2]
[372624525,1752714655430,-608.753778,0.00019318,2]
[372624526,1752714655439,-472.463895,0.00019318,2]
[372624527,1752714655448,-472.463895,0.00019318,2]
[372624528,1752714655457,-502.524844,0.00019318,2]
[372624529,1752714655467,-1124.421415,0.00019318,2]
[372624530,1752714655476,-502.524844,0.00019318,2]
[372624531,1752714655486,-1124.421415,0.00019318,2]
[372624532,1752714655495,-151.0,0.00019318,2]
[372624533,1752714655504,-1113.458894,0.00019318,2]
[372624534,1752714655513,-1113.458894,0.00019318,2]
[372624535,1752714655523,-1410.796136,0.00019318,2]
[372624536,1752714655532,-151.0,0.00019318,2]
[372624537,1752714655541,-460.0,0.00019318,2]
[372624538,1752714655550,-360.25860661,0.00019318,2]
[372624539,1752714655560,-347.55,0.00019318,2]
[372624540,1752714655569,-460.0,0.00019318,2]
[372624541,1752714655578,-1078.16,0.00019318,2]
[372624542,1752714655587,-460.0,0.00019318,2]
[372624543,1752714655597,-460.0,0.00019318,2]
[372624544,1752714655606,-460.0,0.00019318,2]
[372624545,1752714655615,-460.0,0.00019318,2]
[372624546,1752714655625,-460.0,0.00019318,2]
[372624547,1752714655634,-175.58547255,0.00019318,2]
[372624548,1752714655644,-460.0,0.00019318,2]
[372624549,1752714655659,-460.0,0.00019318,2]
[372624550,1752714655674,-460.0,0.00019318,2]
[372624551,1752714655684,-460.0,0.00019318,2]
[372624552,1752714655693,-460.0,0.00019318,2]
[372624553,1752714655702,-419.250045,0.00019319,2]
[372624554,1752714655712,-419.250045,0.00019319,2]
[372624555,1752714655722,-1113.458894,0.00019319,2]
[372624556,1752714655731,-1113.458901,0.00019319,2]
[372624557,1752714655739,-151.0,0.00019319,2]
[372624558,1752714655748,-800.0,0.00019322,2]
[372624559,1752714655757,-151.0,0.00019329,2]
[372624560,1752714655767,-283.533693,0.00019329,2]
[372624561,1752714655775,-283.533693,0.00019329,2]
[372624562,1752714655784,-151.0,0.00019329,2]
[372624563,1752714655793,-186.003966,0.00019329,2]
[372624564,1752714655802,-151.0,0.00019329,2]
[372624565,1752714655811,-151.0,0.00019329,2]
[372624566,1752714655820,-340.169357,0.00019329,2]
[372624567,1752714655829,-151.0,0.00019329,2]
[372624568,1752714655839,-151.0,0.00019329,2]
[372624569,1752714655848,-151.0,0.00019329,2]
[372624570,1752714655857,-209.390057,0.00019329,2]
[372624571,1752714655866,-209.390057,0.00019329,2]
[372624572,1752714655876,-151.0,0.00019329,2]
[372624573,1752714655885,-151.0,0.00019329,2]
[372624574,1752714655894,-151.0,0.00019329,2]
[372624575,1752714655907,-280.195861,0.00019329,2]
[372624576,1752714655916,-280.195861,0.00019329,2]
[372624577,1752714655925,-280.195861,0.00019329,2]
[372624578,1752714655934,-280.195861,0.00019329,2]
[372624579,1752714655943,-151.0,0.00019329,2]
[372624580,1752714655952,-419.250045,0.00019329,2]
[372624581,1752714655961,-419.250045,0.00019329,2]
[372624582,1752714655970,-988.056476,0.00019329,2]
[372624583,1752714655979,-988.056476,0.00019329,2]
[372624584,1752714655989,-988.056476,0.00019329,2]
[372624585,1752714655998,-988.056476,0.00019329,2]
[372624586,1752714656007,-251.492781,0.00019329,2]
[372624587,1752714656016,-251.492781,0.00019329,2]
[372624588,1752714656025,-152.340618,0.00019329,2]
[372624589,1752714656034,-151.0,0.00019329,2]
[372624590,1752714656043,-151.0,0.00019329,2]
[372624591,1752714656052,-152.012581,0.00019329,2]
[372624592,1752714656061,-306.211481,0.00019329,2]
[372624593,1752714656070,-306.211481,0.00019329,2]
[372624594,1752714656079,-306.211481,0.00019329,2]
[372624595,1752714656088,-306.211481,0.00019329,2]
[372624596,1752714656097,-170.766432,0.00019329,2]
[372624597,1752714656106,-230.874652,0.00019329,2]
[372624598,1752714656115,-230.874652,0.00019329,2]
[372624599,1752714656124,-184.541676,0.00019329,2]
[372624600,1752714656133,-184.541676,0.00019329,2]
[372624601,1752714656141,-247.706779,0.00019329,2]
[372624602,1752714656150,-247.706779,0.00019329,2]
[372624603,1752714656159,-151.0,0.00019329,2]
[372624604,1752714656168,-151.0,0.00019329,2]
[372624605,1752714656177,-151.0,0.00019329,2]
[372624606,1752714656186,-151.0,0.00019329,2]
[372624607,1752714656195,-608.753778,0.00019329,2]
[372624608,1752714656204,-608.753786,0.00019329,2]
[372624609,1752714656214,-472.463895,0.00019329,2]
[372624610,1752714656223,-472.4639,0.00019329,2]
[372624611,1752714656233,-502.524844,0.00019329,2]
[372624612,1752714656243,-1124.421415,0.00019329,2]
[372624613,1752714656252,-502.524844,0.00019329,2]
[372624614,1752714656262,-1124.421415,0.00019329,2]
[372624615,1752714656271,-151.0,0.00019329,2]
[372624616,1752714656280,-1410.796136,0.00019329,2]
[372624617,1752714656289,-67376.64133753,0.00019329,2]
[372624618,1752714657221,-160.30045051,0.000182,2]
[372624620,1752714667556,-289.98960023,0.00018122,2]
[372624621,1752714670659,-460.0,0.00018122,2]
[372624622,1752714673017,-250.01039977,0.00018122,2]
[372624623,1752714675944,5981.45098,0.00017484,2]
[372624629,1752714817896,-411.93653531,0.0001811,2]
[372624630,1752714821037,-39.82074027,0.0001811,2]
[372624632,1752714840779,302.623131,0.00013699,2]
[372624637,1752715007878,395.28761615,0.00018099,2]
[372624638,1752715034804,1000.0,0.00025931,60]
[372624639,1752715035657,1000.0,0.00025931,60]
[372624640,1752715036466,1000.0,0.00025931,60]
[372624641,1752715037606,1000.0,0.00025931,60]
[372624642,1752715039128,1000.0,0.00025931,60]
[372624643,1752715040113,1000.0,0.00025931,60]
[372624644,1752715041438,1000.0,0.00025931,60]
[372624645,1752715042277,1000.0,0.00025931,60]
[372624646,1752715043098,1000.0,0.00025931,60]
[372624647,1752715043786,1000.0,0.00025931,60]
[372624648,1752715044570,1000.0,0.00025931,60]
[372624649,1752715045245,1000.0,0.00025931,60]
[372624650,1752715071377,3158.57626455,0.0001526,2]
[372624651,1752715071708,3158.57626455,0.00015375,2]
[372624652,1752715072035,3158.57626455,0.0001563,2]
[372624653,1752715072903,244.22789852,0.00016128,2]
[372624654,1752715072927,2914.34836603,0.00016128,2]
[372624655,1752715073232,3158.57626455,0.00016283,2]
[372624656,1752715073538,3158.57626455,0.00016593,2]
[372624657,1752715074311,3158.57626455,0.00016856,2]
[372624658,1752715074586,605.79195795,0.00025931,120]
[372624659,1752715074621,3158.57626455,0.00017049,2]
[372624660,1752715074986,3158.57626455,0.00017332,2]
[372624661,1752715075926,3158.57626455,0.00017696,2]
[372624662,1752715076124,3158.57626455,0.00017988,2]
[372624663,1752715076554,3158.57626455,0.00018085,2]
[372624667,1752715197940,345.87666414,0.00018099,2]
[372624669,1752715290478,1000.0,0.00025905,60]
[372624670,1752715294239,1000.0,0.00025905,60]
[372624671,1752715296797,1000.0,0.00025905,60]
[372624672,1752715301718,1000.0,0.00025905,60]
[372624673,1752715303756,1000.0,0.00025905,60]
[372624675,1752715308198,1000.0,0.00025905,60]
[372624676,1752715311047,1000.0,0.00025905,60]
[372624677,1752715312180,1000.0,0.00025905,60]
[372624678,1752715315973,1000.0,0.00025905,60]
[372624679,1752715318437,1000.0,0.00025905,60]
[372624680,1752715320969,1000.0,0.00025905,60]
[372624681,1752715322531,1000.0,0.00025905,60]
[372624682,1752715324461,1000.0,0.00025905,60]
[372624683,1752715326746,1000.0,0.00025905,60]
[372624684,1752715329359,1000.0,0.00025905,60]
[372624686,1752715393518,302.64208107,0.00018099,2]
[372624688,1752715411894,1000.0,0.00023,30]
[372624689,1752715452582,694.18,0.000181,2]
[372624690,1752715463726,500.0,6.8e-07,120]
[372624691,1752715476779,500.0,6.8e-07,120]
[372624692,1752715488501,500.0,6.8e-07,120]
[372624693,1752715503978,500.0,6.8e-07,120]
[372624694,1752715516089,500.0,6.8e-07,120]
[372624695,1752715525670,500.0,6.8e-07,120]
[372624701,1752715599185,264.81182098,0.00018098,2]
[372624702,1752715617980,500.0,6.8e-07,120]
[372624708,1752715804453,231.71034334,0.00018098,2]
[372624709,1752715807750,-300.0,0.00018108,2]
[372624710,1752715811240,-235.30291172,0.00018108,2]
[372624711,1752715814252,-222.06400111,0.00018108,2]
[372624712,1752715816761,-190.73656462,0.00018108,2]
[372624713,1752715820313,-274.88026565,0.00018108,2]
[372624714,1752715823769,-189.65797183,0.00018108,2]
[372624715,1752715824598,287.491974,0.00013699,2]
[372624716,1752715825664,-215.7550185,0.00018108,2]
[372624717,1752715828440,310.549106,0.00027397,120]
[372624745,1752715832061,-207.4,0.00018187,2]
[372624746,1752715832071,-386.88319695,0.00018187,2]
[372624747,1752715832083,-113.11680305,0.00018187,2]
[372624748,1752715832093,-456.39298166,0.00018187,2]
[372624749,1752715832102,-151.0,0.00018187,2]
[372624750,1752715832111,-151.0,0.00018187,2]
[372624751,1752715832121,-151.0,0.00018187,2]
[372624752,1752715832131,-151.0,0.00018187,2]
[372624754,1752715832140,-151.0,0.00018187,2]